[Event "Charlotte Fall GM-B 2023"]
[Site "Charlotte"]
[Date "2023.11.19"]
[Round "5.2"]
[White "Wang, Tianqi"]
[Black "Griffith, Kyron"]
[Result "1-0"]
[ECO "A13"]
[WhiteElo "2350"]
[BlackElo "2358"]
[Annotator "RC"]
[PlyCount "169"]
[EventDate "2023.11.17"]
[EventType "tourn"]
[EventCountry "USA"]
[SourceTitle "playchess.com"]
[Source "ChessBase"]
[SourceQuality "1"]
[TimeControl "5400+30"]

1. c4 {[%emt 0:02:34]} Nf6 {[%emt 0:01:50]} 2. g3 {[%emt 0:00:31]} e6 {[%emt 0:00:36]} 3. Bg2 {[%emt 0:00:15]} d5 {[%emt 0:00:34]} 4. Nf3 {[%emt 0:01:28]} dxc4 {[%emt 0:00:28]} 5. O-O {[%emt 0:02:59]} a6 {[%emt 0:00:07]} 6. Qc2 {[%emt 0:14:55]} b5 {[%emt 0:01:17]} 7. Ne5 {[%emt 0:02:29]} Nd5 {[%emt 0:00:19]} 8. b3 {[%emt 0:06:41]} cxb3 {[%emt 0:01:34]} 9. Qxb3 {[%emt 0:00:18]} Bb7 {[%emt 0:07:20]} 10. a4 {[%emt 0:01:16]} b4 {[%emt 0:02:26]} 11. a5 {[%emt 0:00:29]} Be7 {[%emt 0:04:59]} 12. Qa4+ {[%emt 0:02:56]} c6 {[%emt 0:02:03]} 13. Bb2 {[%emt 0:00:20]} O-O {[%emt 0:02:37]} 14. d4 {[%emt 0:12:34]} c5 {[%emt 0:05:29]} 15. dxc5 {[%emt 0:00:23]} Bxc5 {[%emt 0:00:41]} 16. Nd2 {[%emt 0:04:03]} Qe7 {[%emt 0:14:45]} 17. Rac1 {[%emt 0:02:31]} f6 {[%emt 0:16:54]} 18. Nd3 {[%emt 0:00:54]} Nd7 {[%emt 0:00:17]} 19. e4 {[%emt 0:05:05]} Nc3 {[%emt 0:10:26]} 20. Bxc3 {[%emt 0:00:09]} bxc3 {[%emt 0:00:01]} 21. Rxc3 {[%emt 0:00:05]} Bd6 {[%emt 0:00:14]} 22. Rb1 {[%emt 0:03:52]} Rab8 {[%emt 0:01:08]} 23. Rcb3 {[%emt 0:03:21]} Ne5 {[%emt 0:06:48]} 24. Nxe5 {[%emt 0:02:19]} Bxe5 {[%emt 0:00:18]} 25. Nc4 {[%emt 0:07:36]} Bd4 {[%emt 0:05:40]} 26. e5 {[%emt 0:10:29]} Bxg2 {[%emt 0:00:05]} 27. Rxb8 {[%emt 0:00:22]} Be4 {[%emt 0:00:20]} 28. Qb4 {[%emt 0:08:38]} Bc5 {[%emt 0:00:29]} 29. exf6 {[%emt 0:00:17]} gxf6 {[%emt 0:05:31]} 30. Rxf8+ {[%emt 0:00:31]} Qxf8 {[%emt 0:00:05]} 31. Qe1 {[%emt 0:00:11]} Bxb1 {[%emt 0:00:59]} 32. Qxb1 {[%emt 0:00:07]} Qd8 {[%emt 0:01:04]} 33. Qc2 {[%emt 0:01:40]} Qd5 {[%emt 0:00:30]} 34. Qe2 {[%emt 0:00:14]} e5 {[%emt 0:03:03]} 35. h4 {[%emt 0:01:14]} Kf8 {[%emt 0:01:17]} 36. Nd2 {[%emt 0:01:04]} Bb4 {[%emt 0:00:47]} 37. Ne4 {[%emt 0:00:20]} Be7 {[%emt 0:01:02]} 38. Qf3 {[%emt 0:00:33]} h5 {[%emt 0:03:09]} 39. Qf5 {[%emt 0:00:19]} Qd1+ {[%emt 0:00:10]} 40. Kh2 {[%emt 0:00:56]} Qg4 {[%emt 0:00:28]} 41. Qh7 {[%emt 0:00:11]} f5 {[%emt 0:00:16]} 42. Ng5 {[%emt 0:00:44]} Bxg5 {[%emt 0:00:09]} 43. hxg5 {[%emt 0:00:19]} Qxg5 {[%emt 0:00:08]} 44. Qh8+ {[%emt 0:00:10]} Kf7 {[%emt 0:00:08]} 45. Qxe5 {[%emt 0:00:06]} Qf6 {[%emt 0:02:06]} 46. Qe2 {[%emt 0:00:34]} Kg6 {[%emt 0:00:18]} 47. Qc4 {[%emt 0:00:15]} Kg7 {[%emt 0:01:03]} 48. Kg2 {[%emt 0:01:05]} Kh6 {[%emt 0:00:52]} 49. Qc7 {[%emt 0:00:20]} Kg6 {[%emt 0:00:13]} 50. Qb6 {[%emt 0:00:23]} Kg7 {[%emt 0:00:25]} 51. Kf3 {[%emt 0:01:50]} Qe5 {[%emt 0:00:07]} 52. Kg2 {[%emt 0:00:52]} Qe4+ {[%emt 0:00:07]} 53. Kh2 {[%emt 0:00:12]} Qe2 {[%emt 0:01:13]} 54. Qd4+ {[%emt 0:00:19]} Kg6 {[%emt 0:00:05]} 55. Qc5 {[%emt 0:01:01]} Kf6 {[%emt 0:00:10]} 56. Kg2 {[%emt 0:00:31]} Qe4+ {[%emt 0:00:11]} 57. Kf1 {[%emt 0:00:33]} Qh1+ {[%emt 0:00:04]} 58. Ke2 {[%emt 0:00:16]} Qe4+ {[%emt 0:00:07]} 59. Kd2 {[%emt 0:00:11]} Kg5 {[%emt 0:00:54]} 60. Qd6 {[%emt 0:01:30]} Kg4 {[%emt 0:00:32]} 61. Qxa6 {[%emt 0:00:56]} Qd4+ {[%emt 0:01:58]} 62. Qd3 {[%emt 0:00:23]} Qb2+ {[%emt 0:01:25]} 63. Ke1 {[%emt 0:00:30]} Qb4+ {[%emt 0:00:29]} 64. Qd2 {[%emt 0:00:07]} Qa3 {[%emt 0:01:02]} 65. Qe2+ {[%emt 0:01:14]} Kh3 {[%emt 0:00:14]} 66. Qxh5+ {[%emt 0:00:21]} Kg2 {[%emt 0:00:01]} 67. Qxf5 {[%emt 0:00:15]} Qc3+ {[%emt 0:00:22]} 68. Ke2 {[%emt 0:00:28]} Qb2+ {[%emt 0:00:03]} 69. Ke3 {[%emt 0:00:17]} Qc3+ {[%emt 0:00:17]} 70. Kf4 {[%emt 0:01:05]} Qd2+ {[%emt 0:00:02]} 71. Kg4 {[%emt 0:00:11]} Qd1+ {[%emt 0:00:05]} 72. f3 {[%emt 0:00:17]} Qd4+ {[%emt 0:00:21]} 73. f4 {[%emt 0:00:26]} Qd1+ {[%emt 0:00:35]} 74. Kg5 {[%emt 0:01:23]} Kxg3 {[%emt 0:00:07]} 75. a6 {[%emt 0:00:27]} Qd8+ {[%emt 0:00:07]} 76. Qf6 {[%emt 0:00:08]} Qd2 {[%emt 0:01:37]} 77. Kg6 {[%emt 0:00:24]} Qe3 {[%emt 0:01:34]} 78. f5 {[%emt 0:00:22]} Kg4 {[%emt 0:00:06]} 79. Qe6 {[%emt 0:00:24]} Qg5+ {[%emt 0:00:32]} 80. Kf7 {[%emt 0:00:06]} Qd8 {[%emt 0:00:06]} 81. f6+ {[%emt 0:01:04]} Kg5 {[%emt 0:00:16]} 82. Kg7 {[%emt 0:00:09]} Qd4 {[%emt 0:00:22]} 83. Qe7 {[%emt 0:00:41]} Kh5 {[%emt 0:01:15]} 84. a7 {[%emt 0:00:30]} Qe4 {[%emt 0:00:44]} 85. Qxe4 {[%emt 0:00:14]} 1-0

[Event "Charlotte Fall GM-B 2023"]
[Site "Charlotte"]
[Date "2023.11.19"]
[Round "5.4"]
[White "Ringoir, Tanguy"]
[Black "Ippolito, Dean"]
[Result "1-0"]
[ECO "E06"]
[WhiteElo "2507"]
[BlackElo "2356"]
[Annotator "RC"]
[PlyCount "63"]
[EventDate "2023.11.17"]
[EventType "tourn"]
[EventCountry "USA"]
[SourceTitle "playchess.com"]
[Source "ChessBase"]
[SourceQuality "1"]
[TimeControl "5400+30"]

1. d4 {[%emt 0:00:03]} d5 {[%emt 0:00:07]} 2. c4 {[%emt 0:00:07]} e6 {[%emt 0:00:07]} 3. Nf3 {[%emt 0:00:06]} Nf6 {[%emt 0:00:06]} 4. g3 {[%emt 0:00:04]} Be7 {[%emt 0:00:22]} 5. Bg2 {[%emt 0:00:08]} O-O {[%emt 0:00:09]} 6. Qd3 {[%emt 0:00:04]} c5 {[%emt 0:14:03]} 7. O-O {[%emt 0:00:08]} cxd4 {[%emt 0:09:07]} 8. Nxd4 {[%emt 0:00:08]} Nc6 {[%emt 0:00:04]} 9. cxd5 {[%emt 0:01:54]} Nxd4 {[%emt 0:00:22]} 10. Qxd4 {[%emt 0:00:06]} Nxd5 {[%emt 0:00:15]} 11. Nc3 {[%emt 0:00:08]} Bf6 {[%emt 0:02:04]} 12. Qc4 {[%emt 0:00:04]} Nxc3 {[%emt 0:01:27]} 13. bxc3 {[%emt 0:00:03]} Bd7 {[%emt 0:02:47]} 14. Bxb7 {[%emt 0:07:41]} Rb8 {[%emt 0:00:04]} 15. Rb1 {[%emt 0:01:49]} Bc8 {[%emt 0:04:12]} 16. Be4 {[%emt 0:03:39]} Rxb1 {[%emt 0:00:07]} 17. Bxb1 {[%emt 0:00:02]} Qa5 {[%emt 0:00:08]} 18. Qe4 {[%emt 0:22:59]} g6 {[%emt 0:00:07]} 19. c4 {[%emt 0:00:04]} Ba6 {[%emt 0:06:34]} 20. Be3 {[%emt 0:05:50]} Rc8 {[%emt 0:00:55]} 21. Bd3 {[%emt 0:14:35]} Qxa2 {[%emt 0:04:46]} 22. c5 {[%emt 0:00:01]} Bb2 {[%emt 0:38:36]} 23. Rb1 {[%emt 0:08:28]} f5 {[%emt 0:00:14]} 24. Qb4 {[%emt 0:00:38]} Bxd3 {[%emt 0:00:11]} 25. Rxb2 {[%emt 0:00:07]} Qa1+ {[%emt 0:00:33]} 26. Kg2 {[%emt 0:00:02]} Be4+ {[%emt 0:02:53]} 27. f3 {[%emt 0:00:01]} Bc6 {[%emt 0:04:01]} 28. Qc3 {[%emt 0:14:50]} e5 {[%emt 0:01:16]} 29. Bh6 {[%emt 0:00:47]} Qd1 {[%emt 0:06:06]} 30. Rd2 {[%emt 0:00:21]} Qb1 {[%emt 0:00:29]} 31. Qc4+ {[%emt 0:00:46]} Kh8 {[%emt 0:00:02]} 32. Qf7 {[%emt 0:00:07]} 1-0

[Event "Charlotte Fall GM-B 2023"]
[Site "Charlotte"]
[Date "2023.11.19"]
[Round "5.5"]
[White "Korley, Kassa"]
[Black "Stremavicius, Titas"]
[Result "0-1"]
[ECO "A13"]
[WhiteElo "2457"]
[BlackElo "2563"]
[Annotator "RC"]
[PlyCount "96"]
[EventDate "2023.11.17"]
[EventType "tourn"]
[EventCountry "USA"]
[SourceTitle "playchess.com"]
[Source "ChessBase"]
[SourceQuality "1"]
[TimeControl "5400+30"]

1. Nf3 {[%emt 0:00:04]} d5 {[%emt 0:02:54]} 2. g3 {[%emt 0:00:08]} Nf6 {[%emt 0:00:10]} 3. Bg2 {[%emt 0:00:04]} e6 {[%emt 0:00:08]} 4. O-O {[%emt 0:00:51]} Bd6 {[%emt 0:00:04]} 5. c4 {[%emt 0:03:19]} O-O {[%emt 0:00:17]} 6. d3 {[%emt 0:13:21]} h6 {[%emt 0:08:54]} 7. Nc3 {[%emt 0:01:04]} Nc6 {[%emt 0:02:25]} 8. a3 {[%emt 0:27:19]} d4 {[%emt 0:11:55]} 9. Na4 {[%emt 0:04:04]} a5 {[%emt 0:00:55]} 10. e3 {[%emt 0:01:13]} e5 {[%emt 0:08:05]} 11. exd4 {[%emt 0:01:56]} exd4 {[%emt 0:00:10]} 12. b3 {[%emt 0:00:25]} Re8 {[%emt 0:11:59]} 13. Bb2 {[%emt 0:00:30]} Bf8 {[%emt 0:01:38]} 14. Qd2 {[%emt 0:01:02]} Bf5 {[%emt 0:05:38]} 15. Rfe1 {[%emt 0:02:54]} Qd7 {[%emt 0:00:29]} 16. Rxe8 {[%emt 0:03:08]} Rxe8 {[%emt 0:00:05]} 17. Re1 {[%emt 0:00:08]} Rd8 {[%emt 0:07:35]} 18. Ne5 {[%emt 0:09:33]} Nxe5 {[%emt 0:00:09]} 19. Rxe5 {[%emt 0:00:04]} b6 {[%emt 0:00:54]} 20. c5 {[%emt 0:00:57]} Bh3 {[%emt 0:03:58]} 21. Bh1 {[%emt 0:05:52]} Qb5 {[%emt 0:01:21]} 22. Qc2 {[%emt 0:01:23]} Bd6 {[%emt 0:03:38]} 23. Re1 {[%emt 0:03:23]} bxc5 {[%emt 0:00:40]} 24. Bc1 {[%emt 0:01:45]} Rb8 {[%emt 0:01:22]} 25. Nb2 {[%emt 0:00:05]} Qxb3 {[%emt 0:00:15]} 26. Qd2 {[%emt 0:00:03]} Qxa3 {[%emt 0:02:33]} 27. Nc4 {[%emt 0:00:10]} Qb4 {[%emt 0:00:40]} 28. Nxa5 {[%emt 0:03:14]} Qxd2 {[%emt 0:02:55]} 29. Bxd2 {[%emt 0:00:01]} Rb2 {[%emt 0:00:09]} 30. Bc1 {[%emt 0:05:12]} Rc2 {[%emt 0:01:39]} 31. Nc4 {[%emt 0:01:35]} Ng4 {[%emt 0:03:41]} 32. Bf3 {[%emt 0:01:47]} Nxf2 {[%emt 0:08:27]} 33. Na3 {[%emt 0:00:37]} Rxc1 {[%emt 0:00:30]} 34. Rxc1 {[%emt 0:00:16]} Nxd3 {[%emt 0:11:18]} 35. Ra1 {[%emt 0:02:00]} Ne5 {[%emt 0:00:00]} 36. Be4 {[%emt 0:00:04]} Bd7 {[%emt 0:00:00]} 37. Rc1 {[%emt 0:01:10]} Be6 {[%emt 0:00:00]} 38. Nb5 {[%emt 0:02:39]} f5 {[%emt 0:00:00]} 39. Bb1 {[%emt 0:00:30]} d3 {[%emt 0:00:00]} 40. Kf2 {[%emt 0:00:30]} c4 {[%emt 0:00:00]} 41. Nxd6 {[%emt 0:01:00]} cxd6 {[%emt 0:00:00]} 42. h4 {[%emt 0:01:03]} Ng4+ {[%emt 0:00:00]} 43. Ke1 {[%emt 0:00:08]} Nf6 {[%emt 0:00:00]} 44. Ba2 {[%emt 0:01:57]} Ne4 {[%emt 0:00:00]} 45. Rxc4 {[%emt 0:00:18]} d2+ {[%emt 0:00:00]} 46. Ke2 {[%emt 0:00:30]} Bxc4+ {[%emt 0:00:00]} 47. Bxc4+ {[%emt 0:00:07]} Kf8 {[%emt 0:00:00]} 48. Bd3 {[%emt 0:01:21]} d1=N {[%emt 0:00:00]} 0-1

[Event "Charlotte Fall GM-B 2023"]
[Site "Charlotte"]
[Date "2023.11.20"]
[Round "6.2"]
[White "Ippolito, Dean"]
[Black "Korley, Kassa"]
[Result "1-0"]
[ECO "D23"]
[WhiteElo "2356"]
[BlackElo "2457"]
[Annotator "RC"]
[PlyCount "83"]
[EventDate "2023.11.17"]
[EventType "tourn"]
[EventCountry "USA"]
[SourceTitle "playchess.com"]
[Source "ChessBase"]
[SourceQuality "1"]
[TimeControl "5400+30"]

1. d4 {[%emt 0:00:01]} d5 {[%emt 0:00:14]} 2. c4 {[%emt 0:00:04]} c6 {[%emt 0:00:07]} 3. Nf3 {[%emt 0:00:04]} Nf6 {[%emt 0:00:09]} 4. Qb3 {[%emt 0:00:07]} dxc4 {[%emt 0:00:24]} 5. Qxc4 {[%emt 0:00:04]} Bf5 {[%emt 0:00:12]} 6. Nc3 {[%emt 0:00:15]} Nbd7 {[%emt 0:00:49]} 7. g3 {[%emt 0:00:07]} e6 {[%emt 0:00:35]} 8. Bg2 {[%emt 0:00:05]} Be7 {[%emt 0:00:06]} 9. O-O {[%emt 0:00:06]} O-O {[%emt 0:00:05]} 10. a4 {[%emt 0:00:04]} a5 {[%emt 0:00:55]} 11. e3 {[%emt 0:00:44]} Qc7 {[%emt 0:19:25]} 12. Re1 {[%emt 0:27:04]} e5 {[%emt 0:02:35]} 13. e4 {[%emt 0:07:33]} Bg4 {[%emt 0:19:54]} 14. dxe5 {[%emt 0:08:02]} Nxe5 {[%emt 0:14:57]} 15. Nxe5 {[%emt 0:00:04]} Qxe5 {[%emt 0:00:03]} 16. h3 {[%emt 0:00:54]} Be6 {[%emt 0:00:29]} 17. Qe2 {[%emt 0:00:11]} Bb4 {[%emt 0:04:00]} 18. Be3 {[%emt 0:08:02]} Bb3 {[%emt 0:03:55]} 19. Rec1 {[%emt 0:02:44]} Qe6 {[%emt 0:03:57]} 20. Bd4 {[%emt 0:00:48]} Nd7 {[%emt 0:05:04]} 21. Nb1 {[%emt 0:02:40]} Rad8 {[%emt 0:04:05]} 22. Qe3 {[%emt 0:13:20]} Bc4 {[%emt 0:02:07]} 23. Nd2 {[%emt 0:14:23]} Ba6 {[%emt 0:00:05]} 24. Nb3 {[%emt 0:06:16]} h6 {[%emt 0:05:55]} 25. Rc2 {[%emt 0:05:23]} b6 {[%emt 0:01:58]} 26. Bxg7 {[%emt 0:00:21]} Kxg7 {[%emt 0:03:34]} 27. Nd4 {[%emt 0:00:01]} Qg6 {[%emt 0:00:22]} 28. Rxc6 {[%emt 0:00:01]} f6 {[%emt 0:00:22]} 29. Ne6+ {[%emt 0:01:52]} Kh8 {[%emt 0:00:05]} 30. Nxd8 {[%emt 0:00:55]} Rxd8 {[%emt 0:00:23]} 31. Rd1 {[%emt 0:00:04]} Rc8 {[%emt 0:04:50]} 32. e5 {[%emt 0:02:27]} Bc5 {[%emt 0:01:35]} 33. Qb3 {[%emt 0:01:42]} Rxc6 {[%emt 0:02:21]} 34. Bxc6 {[%emt 0:00:03]} Bc4 {[%emt 0:00:37]} 35. Qxc4 {[%emt 0:00:33]} Qxg3+ {[%emt 0:00:04]} 36. Bg2 {[%emt 0:00:05]} Bxf2+ {[%emt 0:01:34]} 37. Kh1 {[%emt 0:00:25]} Qg7 {[%emt 0:00:32]} 38. Qc8+ {[%emt 0:00:51]} Nf8 {[%emt 0:00:04]} 39. exf6 {[%emt 0:00:43]} Qf7 {[%emt 0:00:46]} 40. Bd5 {[%emt 0:00:42]} Qxf6 {[%emt 0:00:07]} 41. Rf1 {[%emt 0:00:24]} Qd6 {[%emt 0:00:47]} 42. Qc3+ {[%emt 0:00:07]} 1-0

[Event "Charlotte Fall GM-B 2023"]
[Site "Charlotte"]
[Date "2023.11.20"]
[Round "6.4"]
[White "Griffith, Kyron"]
[Black "Hilby, Craig"]
[Result "1/2-1/2"]
[ECO "B76"]
[WhiteElo "2358"]
[BlackElo "2402"]
[Annotator "RC"]
[PlyCount "59"]
[EventDate "2023.11.17"]
[EventType "tourn"]
[EventCountry "USA"]
[SourceTitle "playchess.com"]
[Source "ChessBase"]
[SourceQuality "1"]
[TimeControl "5400+30"]

1. e4 {[%emt 0:01:28]} c5 {[%emt 0:00:07]} 2. Nf3 {[%emt 0:00:07]} d6 {[%emt 0:00:06]} 3. d4 {[%emt 0:00:59]} cxd4 {[%emt 0:00:06]} 4. Nxd4 {[%emt 0:00:03]} Nf6 {[%emt 0:00:08]} 5. Nc3 {[%emt 0:00:03]} g6 {[%emt 0:00:14]} 6. Be3 {[%emt 0:00:29]} Bg7 {[%emt 0:00:26]} 7. f3 {[%emt 0:00:06]} O-O {[%emt 0:00:13]} 8. Qd2 {[%emt 0:00:07]} Nc6 {[%emt 0:00:15]} 9. O-O-O {[%emt 0:01:02]} d5 {[%emt 0:00:34]} 10. Nxc6 {[%emt 0:05:23]} bxc6 {[%emt 0:00:09]} 11. Bh6 {[%emt 0:00:05]} Bxh6 {[%emt 0:01:45]} 12. Qxh6 {[%emt 0:00:03]} e5 {[%emt 0:00:09]} 13. Qg5 {[%emt 0:02:58]} Qd6 {[%emt 0:01:38]} 14. exd5 {[%emt 0:11:23]} cxd5 {[%emt 0:00:43]} 15. Bc4 {[%emt 0:00:30]} Bb7 {[%emt 0:03:08]} 16. Bb3 {[%emt 0:03:49]} Kg7 {[%emt 0:22:07]} 17. f4 {[%emt 0:12:53]} exf4 {[%emt 0:02:36]} 18. Rhf1 {[%emt 0:04:16]} Rad8 {[%emt 0:12:22]} 19. Nb5 {[%emt 0:03:27]} Qb8 {[%emt 0:06:55]} 20. Qxf4 {[%emt 0:03:15]} Qxf4+ {[%emt 0:02:19]} 21. Rxf4 {[%emt 0:00:02]} a6 {[%emt 0:01:35]} 22. Nd4 {[%emt 0:07:20]} Ne4 {[%emt 0:00:44]} 23. c3 {[%emt 0:03:48]} Rfe8 {[%emt 0:06:44]} 24. Rff1 {[%emt 0:01:35]} f5 {[%emt 0:02:21]} 25. Bc2 {[%emt 0:03:05]} Re7 {[%emt 0:05:31]} 26. Rde1 {[%emt 0:05:03]} Rde8 {[%emt 0:00:59]} 27. Ba4 {[%emt 0:01:02]} Rc8 {[%emt 0:00:43]} 28. Bc2 {[%emt 0:01:32]} Rce8 {[%emt 0:00:19]} 29. Ba4 {[%emt 0:01:05]} Rc8 {[%emt 0:00:07]} 30. Bc2 {[%emt 0:01:21]} 1/2-1/2

[Event "Charlotte Fall GM-B 2023"]
[Site "Charlotte"]
[Date "2023.11.20"]
[Round "6.5"]
[White "Cordova, Emilio"]
[Black "Wang, Tianqi"]
[Result "1/2-1/2"]
[ECO "D02"]
[WhiteElo "2568"]
[BlackElo "2350"]
[Annotator "RC"]
[PlyCount "122"]
[EventDate "2023.11.17"]
[EventType "tourn"]
[EventCountry "USA"]
[SourceTitle "playchess.com"]
[Source "ChessBase"]
[SourceQuality "1"]
[TimeControl "5400+30"]

1. Nf3 {[%emt 0:02:43]} d5 {[%emt 0:00:07]} 2. g3 {[%emt 0:00:45]} Nd7 {[%emt 0:00:11]} 3. d4 {[%emt 0:00:26]} Nb6 {[%emt 0:00:08]} 4. Bg2 {[%emt 0:00:35]} Bf5 {[%emt 0:00:17]} 5. Nbd2 {[%emt 0:00:38]} e6 {[%emt 0:00:17]} 6. O-O {[%emt 0:02:53]} Nf6 {[%emt 0:00:05]} 7. c4 {[%emt 0:07:04]} dxc4 {[%emt 0:02:50]} 8. Nh4 {[%emt 0:01:32]} c6 {[%emt 0:00:54]} 9. Nxf5 {[%emt 0:00:20]} exf5 {[%emt 0:00:03]} 10. e3 {[%emt 0:01:05]} Bd6 {[%emt 0:00:53]} 11. Qc2 {[%emt 0:00:09]} g6 {[%emt 0:00:03]} 12. Nxc4 {[%emt 0:01:05]} Nxc4 {[%emt 0:00:03]} 13. Qxc4 {[%emt 0:00:06]} a5 {[%emt 0:01:04]} 14. b3 {[%emt 0:01:20]} O-O {[%emt 0:02:33]} 15. Bb2 {[%emt 0:00:33]} Qe7 {[%emt 0:01:08]} 16. Rad1 {[%emt 0:03:20]} Rfe8 {[%emt 0:01:22]} 17. d5 {[%emt 0:02:45]} c5 {[%emt 0:13:30]} 18. Rfe1 {[%emt 0:01:26]} b6 {[%emt 0:05:21]} 19. f4 {[%emt 0:11:37]} Ne4 {[%emt 0:12:51]} 20. Bxe4 {[%emt 0:00:20]} fxe4 {[%emt 0:00:05]} 21. Qc3 {[%emt 0:00:08]} f6 {[%emt 0:00:04]} 22. Qxf6 {[%emt 0:00:17]} Qxf6 {[%emt 0:00:05]} 23. Bxf6 {[%emt 0:00:06]} Kf7 {[%emt 0:00:20]} 24. Bb2 {[%emt 0:01:32]} b5 {[%emt 0:00:50]} 25. Rf1 {[%emt 0:00:17]} a4 {[%emt 0:00:11]} 26. g4 {[%emt 0:01:46]} axb3 {[%emt 0:01:35]} 27. axb3 {[%emt 0:00:15]} Ra2 {[%emt 0:00:02]} 28. Rf2 {[%emt 0:00:23]} Rc8 {[%emt 0:03:39]} 29. Be5 {[%emt 0:07:54]} Rxf2 {[%emt 0:12:08]} 30. Kxf2 {[%emt 0:00:07]} Bxe5 {[%emt 0:00:03]} 31. fxe5 {[%emt 0:00:04]} c4 {[%emt 0:00:02]} 32. bxc4 {[%emt 0:24:11]} bxc4 {[%emt 0:00:26]} 33. g5 {[%emt 0:11:29]} c3 {[%emt 0:36:33]} 34. Kg3 {[%emt 0:00:20]} c2 {[%emt 0:00:01]} 35. Rc1 {[%emt 0:00:05]} Rc4 {[%emt 0:00:03]} 36. Kf4 {[%emt 0:00:04]} Ke7 {[%emt 0:00:03]} 37. e6 {[%emt 0:05:59]} Kd6 {[%emt 0:00:01]} 38. h4 {[%emt 0:00:31]} Rc5 {[%emt 0:00:05]} 39. Kxe4 {[%emt 0:00:49]} Rxd5 {[%emt 0:00:20]} 40. Rxc2 {[%emt 0:00:29]} Re5+ {[%emt 0:00:04]} 41. Kf4 {[%emt 0:01:05]} Rf5+ {[%emt 0:00:15]} 42. Kg4 {[%emt 0:00:25]} Re5 {[%emt 0:00:07]} 43. Kf3 {[%emt 0:01:31]} Rf5+ {[%emt 0:02:17]} 44. Ke2 {[%emt 0:00:41]} h6 {[%emt 0:01:46]} 45. gxh6 {[%emt 0:00:34]} Rh5 {[%emt 0:00:08]} 46. Rc4 {[%emt 0:00:51]} Kxe6 {[%emt 0:00:07]} 47. Kf3 {[%emt 0:05:34]} Rxh6 {[%emt 0:00:06]} 48. Kg4 {[%emt 0:00:03]} Rh5 {[%emt 0:00:15]} 49. e4 {[%emt 0:00:56]} Ra5 {[%emt 0:00:31]} 50. Rd4 {[%emt 0:00:36]} Ra1 {[%emt 0:00:39]} 51. Rd3 {[%emt 0:00:36]} Ke5 {[%emt 0:00:49]} 52. Rg3 {[%emt 0:00:08]} Kxe4 {[%emt 0:04:00]} 53. Kg5 {[%emt 0:00:05]} Rh1 {[%emt 0:00:05]} 54. Rg2 {[%emt 0:01:04]} Kf3 {[%emt 0:00:43]} 55. Rg4 {[%emt 0:00:05]} Rh2 {[%emt 0:01:26]} 56. Rf4+ {[%emt 0:00:09]} Ke3 {[%emt 0:00:27]} 57. Ra4 {[%emt 0:00:30]} Rg2+ {[%emt 0:00:28]} 58. Rg4 {[%emt 0:00:08]} Rxg4+ {[%emt 0:00:11]} 59. Kxg4 {[%emt 0:00:04]} Kf2 {[%emt 0:00:03]} 60. Kg5 {[%emt 0:00:05]} Kg3 {[%emt 0:00:03]} 61. Kxg6 {[%emt 0:00:05]} Kxh4 {[%emt 0:00:45]} 1/2-1/2

[Event "Charlotte Fall GM-B 2023"]
[Site "Charlotte"]
[Date "2023.11.20"]
[Round "7.1"]
[White "Wang, Tianqi"]
[Black "Gedajlovic, Max"]
[Result "1/2-1/2"]
[ECO "A14"]
[WhiteElo "2350"]
[BlackElo "2407"]
[Annotator "RC"]
[PlyCount "149"]
[EventDate "2023.11.17"]
[EventType "tourn"]
[EventCountry "USA"]
[SourceTitle "playchess.com"]
[Source "ChessBase"]
[SourceQuality "1"]
[TimeControl "5400+30"]

1. c4 {[%emt 0:01:55]} e6 {[%emt 0:04:50]} 2. g3 {[%emt 0:00:09]} d5 {[%emt 0:00:07]} 3. Bg2 {[%emt 0:00:06]} Nf6 {[%emt 0:00:36]} 4. Nf3 {[%emt 0:00:07]} Be7 {[%emt 0:00:13]} 5. O-O {[%emt 0:00:08]} O-O {[%emt 0:00:07]} 6. b3 {[%emt 0:00:06]} d4 {[%emt 0:03:33]} 7. e3 {[%emt 0:00:24]} c5 {[%emt 0:00:10]} 8. Ne5 {[%emt 0:00:40]} Nfd7 {[%emt 0:04:11]} 9. exd4 {[%emt 0:06:10]} cxd4 {[%emt 0:01:33]} 10. Nxd7 {[%emt 0:00:31]} Qxd7 {[%emt 0:02:28]} 11. d3 {[%emt 0:00:41]} Nc6 {[%emt 0:00:29]} 12. f4 {[%emt 0:01:03]} b6 {[%emt 0:03:24]} 13. Nd2 {[%emt 0:01:12]} Bb7 {[%emt 0:00:26]} 14. a3 {[%emt 0:00:38]} a5 {[%emt 0:01:30]} 15. Nf3 {[%emt 0:00:15]} f5 {[%emt 0:09:45]} 16. Re1 {[%emt 0:02:11]} Bf6 {[%emt 0:01:05]} 17. Bd2 {[%emt 0:01:22]} Rfe8 {[%emt 0:09:02]} 18. b4 {[%emt 0:03:24]} Ne7 {[%emt 0:01:30]} 19. Qb3 {[%emt 0:12:17]} Rab8 {[%emt 0:06:55]} 20. b5 {[%emt 0:03:06]} Ng6 {[%emt 0:01:06]} 21. Re2 {[%emt 0:00:33]} Kh8 {[%emt 0:02:27]} 22. Rae1 {[%emt 0:00:48]} Re7 {[%emt 0:01:25]} 23. a4 {[%emt 0:01:03]} Rbe8 {[%emt 0:00:31]} 24. Qa3 {[%emt 0:00:20]} h6 {[%emt 0:03:16]} 25. c5 {[%emt 0:04:24]} bxc5 {[%emt 0:00:36]} 26. Qxc5 {[%emt 0:00:42]} Qd8 {[%emt 0:05:48]} 27. b6 {[%emt 0:19:24]} Qd7 {[%emt 0:08:19]} 28. Qxa5 {[%emt 0:07:45]} Ra8 {[%emt 0:02:16]} 29. Qb5 {[%emt 0:00:06]} Rxa4 {[%emt 0:02:57]} 30. Qxd7 {[%emt 0:01:01]} Rxd7 {[%emt 0:00:02]} 31. Rxe6 {[%emt 0:00:03]} Ra2 {[%emt 0:01:21]} 32. R1e2 {[%emt 0:02:00]} Rb2 {[%emt 0:03:10]} 33. Be1 {[%emt 0:08:05]} Rb3 {[%emt 0:03:43]} 34. Nd2 {[%emt 0:04:11]} Rxd3 {[%emt 0:01:45]} 35. Bxb7 {[%emt 0:00:10]} Rxb7 {[%emt 0:00:05]} 36. Nc4 {[%emt 0:00:03]} Rb3 {[%emt 0:09:47]} 37. Na5 {[%emt 0:00:20]} R7xb6 {[%emt 0:00:18]} 38. Nxb3 {[%emt 0:00:28]} Rxb3 {[%emt 0:00:01]} 39. Bf2 {[%emt 0:00:03]} h5 {[%emt 0:07:27]} 40. h4 {[%emt 0:01:01]} Kh7 {[%emt 0:01:35]} 41. Rd2 {[%emt 0:00:56]} Nh8 {[%emt 0:00:34]} 42. Kg2 {[%emt 0:00:31]} Rb4 {[%emt 0:00:13]} 43. Rc2 {[%emt 0:02:36]} Nf7 {[%emt 0:00:46]} 44. Rc7 {[%emt 0:00:51]} Kg6 {[%emt 0:00:16]} 45. Rd7 {[%emt 0:00:30]} Rb2 {[%emt 0:00:21]} 46. Kf1 {[%emt 0:01:39]} Rb1+ {[%emt 0:00:03]} 47. Re1 {[%emt 0:00:14]} Rb3 {[%emt 0:00:06]} 48. Re6 {[%emt 0:04:10]} Rb1+ {[%emt 0:01:49]} 49. Be1 {[%emt 0:00:55]} Nh6 {[%emt 0:00:30]} 50. Rxd4 {[%emt 0:01:09]} Kf7 {[%emt 0:00:20]} 51. Rdd6 {[%emt 0:00:11]} Ng4 {[%emt 0:00:09]} 52. Re2 {[%emt 0:00:34]} Bc3 {[%emt 0:01:00]} 53. Rde6 {[%emt 0:01:31]} Nf6 {[%emt 0:00:25]} 54. Re7+ {[%emt 0:00:38]} Kg6 {[%emt 0:00:23]} 55. Kg2 {[%emt 0:00:54]} Bxe1 {[%emt 0:00:37]} 56. Rxe1 {[%emt 0:00:06]} Rb3 {[%emt 0:00:31]} 57. R1e6 {[%emt 0:00:22]} Rb2+ {[%emt 0:00:18]} 58. Kh3 {[%emt 0:01:36]} Ra2 {[%emt 0:00:12]} 59. Rb7 {[%emt 0:03:06]} Rc2 {[%emt 0:00:12]} 60. Reb6 {[%emt 0:00:25]} Ra2 {[%emt 0:00:22]} 61. Rb2 {[%emt 0:01:54]} Ra3 {[%emt 0:00:02]} 62. Kg2 {[%emt 0:00:14]} Rc3 {[%emt 0:01:06]} 63. R7b3 {[%emt 0:00:34]} Rc1 {[%emt 0:00:18]} 64. Ra2 {[%emt 0:00:13]} Rc7 {[%emt 0:01:10]} 65. Rb5 {[%emt 0:00:21]} Rc3 {[%emt 0:00:31]} 66. Raa5 {[%emt 0:01:19]} Rc2+ {[%emt 0:00:29]} 67. Kf3 {[%emt 0:03:20]} Rc3+ {[%emt 0:00:46]} 68. Ke2 {[%emt 0:00:36]} Ne4 {[%emt 0:00:14]} 69. Rxf5 {[%emt 0:02:08]} Nxg3+ {[%emt 0:00:08]} 70. Kd2 {[%emt 0:00:02]} Nxf5 {[%emt 0:01:11]} 71. Kxc3 {[%emt 0:00:01]} Nxh4 {[%emt 0:00:04]} 72. Rg5+ {[%emt 0:00:04]} Kf6 {[%emt 0:00:34]} 73. Rxh5 {[%emt 0:02:14]} Ng6 {[%emt 0:00:05]} 74. Rg5 {[%emt 0:00:25]} Nxf4 {[%emt 0:00:06]} 75. Rxg7 {[%emt 0:00:36]} 1/2-1/2